{"text_format":"1","workbook":"xlsx","n_sheets":1,"sheets":["第14号様式　収支決算書（事業別）"],"not_rendered":{"charts":0,"images":0,"macros":1,"external_links":0,"defined_names":1,"comments":1,"pivot_tables":0},"unopened":[],"bounds":{"document_bytes":16777216,"sheet_cells":100000,"rows_first":2000,"rows_last":500,"rows_between":2000,"halvings":0,"cell_chars":16384,"cell_head_chars":4096},"cells_cut":0,"cells_raw":0,"read":"whole","date_system":"1900"}

{"sheet":"第14号様式　収支決算書（事業別）","index":0,"n_rows":57,"n_cols":74,"rows_kept":57,"cut":false,"hidden":false,"merged":[[37,60,37,63],[38,60,38,63],[39,60,39,63],[40,60,40,63],[41,60,41,63],[39,58,39,59],[40,52,40,55],[41,52,41,55],[42,52,42,75],[41,58,41,59],[38,64,38,65],[40,64,40,65],[41,64,41,65],[39,64,39,65],[40,58,40,59],[39,66,39,72],[39,52,39,55],[47,60,47,63],[45,56,45,57],[46,56,46,57],[47,56,47,57],[45,58,45,59],[43,56,43,57],[47,58,47,59],[40,66,40,72],[41,66,41,72],[43,66,43,72],[46,64,46,65],[45,60,45,63],[46,60,46,63],[44,58,44,59],[46,58,46,59],[43,60,43,63],[44,60,44,63],[46,66,46,72],[47,66,47,72],[43,58,43,59],[47,64,47,65],[43,64,43,65],[44,64,44,65],[45,64,45,65],[35,58,35,59],[36,58,36,59],[37,58,37,59],[38,58,38,59],[33,52,33,55],[34,52,34,55],[35,52,35,55],[33,56,33,57],[34,56,34,57],[35,56,35,57],[36,56,36,57],[37,56,37,57],[38,56,38,57],[37,52,37,55],[38,52,38,55],[36,66,36,72],[18,66,18,72],[19,66,19,72],[20,66,20,72],[21,66,21,72],[22,66,22,72],[23,66,23,72],[24,66,24,72],[25,66,25,72],[26,66,26,72],[31,66,31,72],[32,66,32,72],[33,66,33,72],[34,66,34,72],[35,66,35,72],[31,58,31,59],[32,58,32,59],[33,58,33,59],[34,58,34,59],[27,58,27,59],[28,58,28,59],[21,58,21,59],[22,58,22,59],[23,58,23,59],[24,58,24,59],[19,52,19,55],[20,52,20,55],[31,44,31,49],[20,44,20,49],[19,44,19,49],[17,56,17,57],[25,52,25,55],[26,52,26,55],[19,56,19,57],[20,56,20,57],[31,52,31,55],[31,56,31,57],[17,52,17,55],[18,52,18,55],[25,56,25,57],[26,56,26,57],[27,56,27,57],[28,56,28,57],[29,56,29,57],[30,56,30,57],[17,44,17,49],[18,44,18,49],[27,52,27,55],[28,52,28,55],[44,52,44,55],[45,52,45,55],[46,52,46,55],[47,52,47,55],[40,56,40,57],[41,56,41,57],[44,56,44,57],[43,52,43,55],[46,44,46,49],[47,44,47,49],[43,44,43,49],[44,44,44,49],[45,44,45,49],[46,50,46,51],[47,50,47,51],[41,44,41,49],[45,50,45,51],[44,23,44,41],[46,42,46,43],[47,42,47,43],[43,42,43,43],[44,42,44,43],[45,42,45,43],[45,23,45,41],[46,23,46,41],[43,23,43,41],[47,23,47,41],[54,33,54,34],[52,33,52,34],[51,0,51,28],[57,0,57,22],[52,72,52,73],[54,72,54,73],[51,39,51,71],[57,45,60,75],[57,23,57,43],[52,0,52,32],[54,0,54,32],[52,54,52,71],[52,39,52,53],[56,72,56,73],[54,50,54,71],[56,50,56,71],[27,0,32,10],[19,11,22,19],[23,11,24,19],[25,11,26,19],[27,11,32,19],[19,0,22,10],[23,0,24,10],[25,0,26,10],[32,23,32,41],[20,23,20,41],[21,23,21,41],[19,20,22,22],[23,20,24,22],[19,23,19,41],[27,20,32,22],[25,20,26,22],[39,23,39,41],[41,23,41,41],[37,23,37,41],[38,23,38,41],[28,23,28,41],[29,23,29,41],[30,23,30,41],[30,42,30,43],[27,23,27,41],[33,23,33,41],[27,42,27,43],[28,42,28,43],[29,42,29,43],[18,42,18,43],[19,42,19,43],[34,23,34,41],[35,23,35,41],[36,23,36,41],[31,42,31,43],[32,42,32,43],[21,42,21,43],[22,42,22,43],[31,23,31,41],[26,23,26,41],[33,42,33,43],[34,42,34,43],[35,42,35,43],[18,23,18,41],[23,42,23,43],[24,42,24,43],[22,23,22,41],[20,42,20,43],[23,23,23,41],[24,23,24,41],[25,23,25,41],[39,50,39,51],[40,50,40,51],[41,50,41,51],[43,50,43,51],[44,50,44,51],[36,42,36,43],[25,50,25,51],[26,50,26,51],[27,44,27,49],[28,44,28,49],[29,44,29,49],[25,42,25,43],[26,42,26,43],[32,44,32,49],[33,44,33,49],[39,42,39,43],[40,42,40,43],[41,42,41,43],[37,42,37,43],[38,42,38,43],[42,23,42,43],[40,23,40,41],[37,44,37,49],[38,44,38,49],[18,50,18,51],[19,50,19,51],[21,56,21,57],[36,50,36,51],[37,50,37,51],[38,50,38,51],[42,44,42,51],[39,44,39,49],[40,44,40,49],[34,44,34,49],[35,44,35,49],[36,44,36,49],[24,44,24,49],[25,44,25,49],[30,44,30,49],[26,44,26,49],[21,44,21,49],[22,44,22,49],[23,44,23,49],[22,56,22,57],[23,56,23,57],[24,56,24,57],[36,52,36,55],[32,52,32,55],[21,50,21,51],[22,50,22,51],[23,50,23,51],[24,50,24,51],[20,50,20,51],[21,52,21,55],[22,52,22,55],[23,52,23,55],[24,52,24,55],[18,60,18,63],[35,60,35,63],[27,60,27,63],[28,60,28,63],[19,60,19,63],[20,60,20,63],[29,60,29,63],[30,60,30,63],[18,56,18,57],[18,58,18,59],[19,58,19,59],[20,58,20,59],[32,56,32,57],[34,60,34,63],[21,60,21,63],[22,60,22,63],[23,60,23,63],[24,60,24,63],[25,60,25,63],[26,60,26,63],[25,58,25,59],[26,58,26,59],[29,58,29,59],[30,58,30,59],[33,50,33,51],[34,50,34,51],[35,50,35,51],[23,64,23,65],[24,64,24,65],[25,64,25,65],[26,64,26,65],[31,60,31,63],[32,60,32,63],[33,60,33,63],[35,64,35,65],[32,64,32,65],[27,50,27,51],[28,50,28,51],[29,50,29,51],[30,50,30,51],[31,50,31,51],[29,52,29,55],[30,52,30,55],[27,64,27,65],[28,64,28,65],[29,64,29,65],[30,64,30,65],[31,64,31,65],[35,73,35,75],[24,73,24,75],[25,73,25,75],[26,73,26,75],[27,73,27,75],[28,73,28,75],[29,73,29,75],[48,23,48,75],[44,66,44,72],[45,66,45,72],[37,66,37,72],[38,66,38,72],[27,66,27,72],[28,66,28,72],[29,66,29,72],[30,66,30,72],[43,73,43,75],[37,64,37,65],[33,64,33,65],[34,64,34,65],[36,64,36,65],[36,60,36,63],[39,56,39,57],[32,50,32,51],[44,73,44,75],[45,73,45,75],[46,73,46,75],[47,73,47,75],[36,73,36,75],[37,73,37,75],[38,73,38,75],[39,73,39,75],[40,73,40,75],[41,73,41,75],[17,73,17,75],[17,66,17,72],[22,73,22,75],[17,64,17,65],[13,64,13,65],[14,64,14,65],[12,66,12,75],[13,66,13,72],[14,66,14,72],[15,66,15,72],[18,64,18,65],[19,64,19,65],[20,64,20,65],[21,64,21,65],[22,64,22,65],[16,66,16,72],[16,73,16,75],[34,73,34,75],[18,73,18,75],[19,73,19,75],[20,73,20,75],[21,73,21,75],[30,73,30,75],[31,73,31,75],[32,73,32,75],[33,73,33,75],[23,73,23,75],[17,50,17,51],[17,42,17,43],[17,23,17,41],[14,52,14,55],[15,52,15,55],[16,52,16,55],[14,44,14,49],[15,44,15,49],[16,44,16,49],[16,23,16,41],[14,42,14,43],[15,42,15,43],[16,42,16,43],[14,50,14,51],[15,50,15,51],[16,50,16,51],[13,58,13,59],[14,58,14,59],[15,58,15,59],[16,58,16,59],[16,64,16,65],[15,60,15,63],[16,60,16,63],[14,60,14,63],[15,64,15,65],[0,65,0,75],[0,11,0,64],[1,61,1,73],[2,11,2,22],[4,11,4,22],[2,23,2,59],[4,23,4,43],[4,44,4,52],[4,53,4,75],[12,11,12,19],[6,23,6,62],[7,23,7,62],[8,23,8,62],[9,23,9,62],[10,23,10,62],[13,23,13,41],[14,23,14,41],[15,23,15,41],[13,52,13,55],[12,23,12,65],[13,56,13,57],[6,63,6,75],[7,63,7,75],[8,63,8,75],[9,63,9,75],[10,63,10,75],[13,42,13,43],[13,50,13,51],[13,44,13,49],[13,60,13,63],[13,73,13,75],[14,73,14,75],[15,73,15,75],[0,0,0,10],[7,11,7,19],[8,11,8,19],[9,11,9,19],[42,0,42,10],[43,0,47,10],[9,0,9,10],[6,0,6,10],[7,0,7,10],[8,0,8,10],[33,11,34,19],[12,0,12,10],[13,11,18,19],[13,0,18,10],[37,11,38,19],[39,11,41,19],[42,11,42,19],[35,11,36,19],[43,11,47,19],[6,11,6,22],[7,20,7,22],[8,20,8,22],[9,20,9,22],[10,20,10,22],[48,0,48,10],[35,0,36,10],[37,0,38,10],[39,0,41,10],[33,0,34,10],[10,11,10,19],[10,0,10,10],[11,0,11,10],[12,20,12,22],[13,20,18,22],[33,20,34,22],[42,20,42,22],[48,20,48,22],[43,20,47,22],[39,20,41,22],[37,20,38,22],[35,20,36,22],[48,11,48,19],[11,11,11,62],[14,56,14,57],[15,56,15,57],[16,56,16,57],[17,60,17,63],[17,58,17,59]]}
["第14号様式",null,null,null,null,null,null,null,null,null,null,"令和７年度ジュニア育成地域推進事業　収支決算書"]
[null,null,null,null,null,null,null,null,null,null,null,null,null,null,null,null,null,null,null,null,null,null,null,null,null,null,null,null,null,null,null,null,null,null,null,null,null,null,null,null,null,null,null,null,null,null,null,null,null,null,null,null,null,null,null,null,null,null,null,null,null,"事業番号"]
[null,null,null,null,null,null,null,null,null,null,null,"事業名"]
[]
[null,null,null,null,null,null,null,null,null,null,null,"地区体育協会等名",null,null,null,null,null,null,null,null,null,null,null,null,null,null,null,null,null,null,null,null,null,null,null,null,null,null,null,null,null,null,null,null,"主管団体名"]
["＜収入＞"]
["科　　目",null,null,null,null,null,null,null,null,null,null,"金　　額",null,null,null,null,null,null,null,null,null,null,null,"内　　　　容",null,null,null,null,null,null,null,null,null,null,null,null,null,null,null,null,null,null,null,null,null,null,null,null,null,null,null,null,null,null,null,null,null,null,null,null,null,null,null,"備　考"]
["１　分担金",null,null,null,null,null,null,null,null,null,null,null,null,null,null,null,null,null,null,null,"円",null,null,"東京都分担金"]
["２　負担金",null,null,null,null,null,null,null,null,null,null,null,null,null,null,null,null,null,null,null,"円"]
["３　その他",null,null,null,null,null,null,null,null,null,null,null,null,null,null,null,null,null,null,null,"円"]
["合　　計",null,null,null,null,null,null,null,null,null,null,{"$f":"SUM(L8:T10)","v":0},null,null,null,null,null,null,null,null,"円"]
["＜支出＞",null,null,null,null,null,null,null,null,null,null,{"$f":"IF(L8-L43<>0,\"分担金の収支が一致しておりません (\"&ABS(L8-L43)&\"円分）\",IF(L11-L49<>0,\"全体の収支が一致しておりません　（\"&ABS(L11-L49)&\"円分）\",\"\"))","v":""}]
["科目",null,null,null,null,null,null,null,null,null,null,"金額",null,null,null,null,null,null,null,null,null,null,null,"内　　　　　容",null,null,null,null,null,null,null,null,null,null,null,null,null,null,null,null,null,null,null,null,null,null,null,null,null,null,null,null,null,null,null,null,null,null,null,null,null,null,null,null,null,null,"計"]
["１　謝金等",null,null,null,null,null,null,null,null,null,null,{"$f":"SUM(BO14:BU19)","v":0},null,null,null,null,null,null,null,null,"円",null,null,null,null,null,null,null,null,null,null,null,null,null,null,null,null,null,null,null,null,null,"@",null,null,null,null,null,null,null,"×",null,null,null,null,null,null,null,"×",null,null,null,null,null,"回",null,{"$f":"AS14*BA14*BI14","v":0},null,null,null,null,null,null,"円"]
[null,null,null,null,null,null,null,null,null,null,null,null,null,null,null,null,null,null,null,null,null,null,null,null,null,null,null,null,null,null,null,null,null,null,null,null,null,null,null,null,null,null,"@",null,null,null,null,null,null,null,"×",null,null,null,null,null,null,null,"×",null,null,null,null,null,"回",null,{"$f":"AS15*BA15*BI15","v":0},null,null,null,null,null,null,"円"]
[null,null,null,null,null,null,null,null,null,null,null,null,null,null,null,null,null,null,null,null,null,null,null,null,null,null,null,null,null,null,null,null,null,null,null,null,null,null,null,null,null,null,"@",null,null,null,null,null,null,null,"×",null,null,null,null,null,null,null,"×",null,null,null,null,null,"回",null,0,null,null,null,null,null,null,"円"]
[null,null,null,null,null,null,null,null,null,null,null,null,null,null,null,null,null,null,null,null,null,null,null,null,null,null,null,null,null,null,null,null,null,null,null,null,null,null,null,null,null,null,"@",null,null,null,null,null,null,null,"×",null,null,null,null,null,null,null,"×",null,null,null,null,null,"回",null,0,null,null,null,null,null,null,"円"]
[null,null,null,null,null,null,null,null,null,null,null,null,null,null,null,null,null,null,null,null,null,null,null,null,null,null,null,null,null,null,null,null,null,null,null,null,null,null,null,null,null,null,"@",null,null,null,null,null,null,null,"×",null,null,null,null,null,null,null,"×",null,null,null,null,null,"回",null,0,null,null,null,null,null,null,"円"]
[null,null,null,null,null,null,null,null,null,null,null,null,null,null,null,null,null,null,null,null,null,null,null,null,null,null,null,null,null,null,null,null,null,null,null,null,null,null,null,null,null,null,"@",null,null,null,null,null,null,null,"×",null,null,null,null,null,null,null,"×",null,null,null,null,null,"回",null,0,null,null,null,null,null,null,"円"]
["２　交通費",null,null,null,null,null,null,null,null,null,null,{"$f":"SUM(BO20:BU23)","v":0},null,null,null,null,null,null,null,null,"円",null,null,null,null,null,null,null,null,null,null,null,null,null,null,null,null,null,null,null,null,null,"@",null,null,null,null,null,null,null,"×",null,null,null,null,null,null,null,"×",null,null,null,null,null,"回",null,0,null,null,null,null,null,null,"円"]
[null,null,null,null,null,null,null,null,null,null,null,null,null,null,null,null,null,null,null,null,null,null,null,null,null,null,null,null,null,null,null,null,null,null,null,null,null,null,null,null,null,null,"@",null,null,null,null,null,null,null,"×",null,null,null,null,null,null,null,"×",null,null,null,null,null,"回",null,0,null,null,null,null,null,null,"円"]
[null,null,null,null,null,null,null,null,null,null,null,null,null,null,null,null,null,null,null,null,null,null,null,null,null,null,null,null,null,null,null,null,null,null,null,null,null,null,null,null,null,null,"@",null,null,null,null,null,null,null,"×",null,null,null,null,null,null,null,"×",null,null,null,null,null,"回",null,0,null,null,null,null,null,null,"円"]
[null,null,null,null,null,null,null,null,null,null,null,null,null,null,null,null,null,null,null,null,null,null,null,null,null,null,null,null,null,null,null,null,null,null,null,null,null,null,null,null,null,null,"@",null,null,null,null,null,null,null,"×",null,null,null,null,null,null,null,"×",null,null,null,null,null,"回",null,0,null,null,null,null,null,null,"円"]
["３　宿泊費",null,null,null,null,null,null,null,null,null,null,{"$f":"SUM(BO24:BU25)","v":0},null,null,null,null,null,null,null,null,"円",null,null,null,null,null,null,null,null,null,null,null,null,null,null,null,null,null,null,null,null,null,"@",null,null,null,null,null,null,null,"×",null,null,null,null,null,null,null,"×",null,null,null,null,null,"回",null,0,null,null,null,null,null,null,"円"]
[null,null,null,null,null,null,null,null,null,null,null,null,null,null,null,null,null,null,null,null,null,null,null,null,null,null,null,null,null,null,null,null,null,null,null,null,null,null,null,null,null,null,"@",null,null,null,null,null,null,null,"×",null,null,null,null,null,null,null,"×",null,null,null,null,null,"回",null,0,null,null,null,null,null,null,"円"]
["４　印刷製本費",null,null,null,null,null,null,null,null,null,null,{"$f":"SUM(BO26:BU27)","v":0},null,null,null,null,null,null,null,null,"円",null,null,null,null,null,null,null,null,null,null,null,null,null,null,null,null,null,null,null,null,null,"@",null,null,null,null,null,null,null,"×",null,null,null,null,null,null,null,"×",null,null,null,null,null,"回",null,0,null,null,null,null,null,null,"円"]
[null,null,null,null,null,null,null,null,null,null,null,null,null,null,null,null,null,null,null,null,null,null,null,null,null,null,null,null,null,null,null,null,null,null,null,null,null,null,null,null,null,null,"@",null,null,null,null,null,null,null,"×",null,null,null,null,null,null,null,"×",null,null,null,null,null,"回",null,0,null,null,null,null,null,null,"円"]
["５　消耗品費",null,null,null,null,null,null,null,null,null,null,{"$f":"SUM(BO28:BU33)","v":0},null,null,null,null,null,null,null,null,"円",null,null,null,null,null,null,null,null,null,null,null,null,null,null,null,null,null,null,null,null,null,"@",null,null,null,null,null,null,null,"×",null,null,null,null,null,null,null,"×",null,null,null,null,null,"回",null,0,null,null,null,null,null,null,"円"]
[null,null,null,null,null,null,null,null,null,null,null,null,null,null,null,null,null,null,null,null,null,null,null,null,null,null,null,null,null,null,null,null,null,null,null,null,null,null,null,null,null,null,"@",null,null,null,null,null,null,null,"×",null,null,null,null,null,null,null,"×",null,null,null,null,null,"回",null,0,null,null,null,null,null,null,"円"]
[null,null,null,null,null,null,null,null,null,null,null,null,null,null,null,null,null,null,null,null,null,null,null,null,null,null,null,null,null,null,null,null,null,null,null,null,null,null,null,null,null,null,"@",null,null,null,null,null,null,null,"×",null,null,null,null,null,null,null,"×",null,null,null,null,null,"回",null,0,null,null,null,null,null,null,"円"]
[null,null,null,null,null,null,null,null,null,null,null,null,null,null,null,null,null,null,null,null,null,null,null,null,null,null,null,null,null,null,null,null,null,null,null,null,null,null,null,null,null,null,"@",null,null,null,null,null,null,null,"×",null,null,null,null,null,null,null,"×",null,null,null,null,null,"回",null,0,null,null,null,null,null,null,"円"]
[null,null,null,null,null,null,null,null,null,null,null,null,null,null,null,null,null,null,null,null,null,null,null,null,null,null,null,null,null,null,null,null,null,null,null,null,null,null,null,null,null,null,"@",null,null,null,null,null,null,null,"×",null,null,null,null,null,null,null,"×",null,null,null,null,null,"回",null,0,null,null,null,null,null,null,"円"]
[null,null,null,null,null,null,null,null,null,null,null,null,null,null,null,null,null,null,null,null,null,null,null,null,null,null,null,null,null,null,null,null,null,null,null,null,null,null,null,null,null,null,"@",null,null,null,null,null,null,null,"×",null,null,null,null,null,null,null,"×",null,null,null,null,null,"回",null,0,null,null,null,null,null,null,"円"]
["６ 使用料借上料",null,null,null,null,null,null,null,null,null,null,{"$f":"SUM(BO34:BU35)","v":0},null,null,null,null,null,null,null,null,"円",null,null,null,null,null,null,null,null,null,null,null,null,null,null,null,null,null,null,null,null,null,"@",null,null,null,null,null,null,null,"×",null,null,null,null,null,null,null,"×",null,null,null,null,null,"回",null,0,null,null,null,null,null,null,"円"]
[null,null,null,null,null,null,null,null,null,null,null,null,null,null,null,null,null,null,null,null,null,null,null,null,null,null,null,null,null,null,null,null,null,null,null,null,null,null,null,null,null,null,"@",null,null,null,null,null,null,null,"×",null,null,null,null,null,null,null,"×",null,null,null,null,null,"回",null,0,null,null,null,null,null,null,"円"]
["７　通信運搬費",null,null,null,null,null,null,null,null,null,null,{"$f":"SUM(BO36:BU37)","v":0},null,null,null,null,null,null,null,null,"円",null,null,null,null,null,null,null,null,null,null,null,null,null,null,null,null,null,null,null,null,null,"@",null,null,null,null,null,null,null,"×",null,null,null,null,null,null,null,"×",null,null,null,null,null,"回",null,0,null,null,null,null,null,null,"円"]
[null,null,null,null,null,null,null,null,null,null,null,null,null,null,null,null,null,null,null,null,null,null,null,null,null,null,null,null,null,null,null,null,null,null,null,null,null,null,null,null,null,null,"@",null,null,null,null,null,null,null,"×",null,null,null,null,null,null,null,"×",null,null,null,null,null,"回",null,0,null,null,null,null,null,null,"円"]
["８　保険料",null,null,null,null,null,null,null,null,null,null,{"$f":"SUM(BO38:BU39)","v":0},null,null,null,null,null,null,null,null,"円",null,null,null,null,null,null,null,null,null,null,null,null,null,null,null,null,null,null,null,null,null,"@",null,null,null,null,null,null,null,"×",null,null,null,null,null,null,null,"×",null,null,null,null,null,"回",null,0,null,null,null,null,null,null,"円"]
[null,null,null,null,null,null,null,null,null,null,null,null,null,null,null,null,null,null,null,null,null,null,null,null,null,null,null,null,null,null,null,null,null,null,null,null,null,null,null,null,null,null,"@",null,null,null,null,null,null,null,"×",null,null,null,null,null,null,null,"×",null,null,null,null,null,"回",null,0,null,null,null,null,null,null,"円"]
["９　雑役務費",null,null,null,null,null,null,null,null,null,null,{"$f":"SUM(BO40:BU42)","v":0},null,null,null,null,null,null,null,null,"円",null,null,null,null,null,null,null,null,null,null,null,null,null,null,null,null,null,null,null,null,null,"@",null,null,null,null,null,null,null,"×",null,null,null,null,null,null,null,"×",null,null,null,null,null,"回",null,0,null,null,null,null,null,null,"円"]
[null,null,null,null,null,null,null,null,null,null,null,null,null,null,null,null,null,null,null,null,null,null,null,null,null,null,null,null,null,null,null,null,null,null,null,null,null,null,null,null,null,null,"@",null,null,null,null,null,null,null,"×",null,null,null,null,null,null,null,"×",null,null,null,null,null,"回",null,0,null,null,null,null,null,null,"円"]
[null,null,null,null,null,null,null,null,null,null,null,null,null,null,null,null,null,null,null,null,null,null,null,null,null,null,null,null,null,null,null,null,null,null,null,null,null,null,null,null,null,null,"@",null,null,null,null,null,null,null,"×",null,null,null,null,null,null,null,"×",null,null,null,null,null,"回",null,0,null,null,null,null,null,null,"円"]
["分担金支出　計",null,null,null,null,null,null,null,null,null,null,{"$f":"SUM(L14:L42)","v":0},null,null,null,null,null,null,null,null,"円"]
["10　分担金以外で支出するもの",null,null,null,null,null,null,null,null,null,null,{"$f":"SUM(BO44:BU48)","v":0},null,null,null,null,null,null,null,null,"円",null,null,null,null,null,null,null,null,null,null,null,null,null,null,null,null,null,null,null,null,null,"@",null,null,null,null,null,null,null,"×",null,null,null,null,null,null,null,"×",null,null,null,null,null,"回",null,{"$f":"AS44*BA44*BI44","v":0},null,null,null,null,null,null,"円"]
[null,null,null,null,null,null,null,null,null,null,null,null,null,null,null,null,null,null,null,null,null,null,null,null,null,null,null,null,null,null,null,null,null,null,null,null,null,null,null,null,null,null,"@",null,null,null,null,null,null,null,"×",null,null,null,null,null,null,null,"×",null,null,null,null,null,"回",null,{"$f":"AS45*BA45*BI45","v":0},null,null,null,null,null,null,"円"]
[null,null,null,null,null,null,null,null,null,null,null,null,null,null,null,null,null,null,null,null,null,null,null,null,null,null,null,null,null,null,null,null,null,null,null,null,null,null,null,null,null,null,"@",null,null,null,null,null,null,null,"×",null,null,null,null,null,null,null,"×",null,null,null,null,null,"回",null,{"$f":"AS46*BA46*BI46","v":0},null,null,null,null,null,null,"円"]
[null,null,null,null,null,null,null,null,null,null,null,null,null,null,null,null,null,null,null,null,null,null,null,null,null,null,null,null,null,null,null,null,null,null,null,null,null,null,null,null,null,null,"@",null,null,null,null,null,null,null,"×",null,null,null,null,null,null,null,"×",null,null,null,null,null,"回",null,{"$f":"AS47*BA47*BI47","v":0},null,null,null,null,null,null,"円"]
[null,null,null,null,null,null,null,null,null,null,null,null,null,null,null,null,null,null,null,null,null,null,null,null,null,null,null,null,null,null,null,null,null,null,null,null,null,null,null,null,null,null,"@",null,null,null,null,null,null,null,"×",null,null,null,null,null,null,null,"×",null,null,null,null,null,"回",null,{"$f":"AS48*BA48*BI48","v":0},null,null,null,null,null,null,"円"]
["合　　計",null,null,null,null,null,null,null,null,null,null,{"$f":"L44+L43","v":0},null,null,null,null,null,null,null,null,"円"]
["本事業の収入・支出に係る証拠書類等を精査し、正確に処理されていることを確認しました。"]
[]
["令和　　　　年　　　　月　　　　日",null,null,null,null,null,null,null,null,null,null,null,null,null,null,null,null,null,null,null,null,null,null,null,null,null,null,null,null,null,null,null,null,null,null,null,null,null,null,"令和　　　　年　　　　月　　　　日"]
["（主管団体代表者名）　　　　　　　　　　　　　　　　　　　　　　　　　　　　　　　　　",null,null,null,null,null,null,null,null,null,null,null,null,null,null,null,null,null,null,null,null,null,null,null,null,null,null,null,null,null,null,null,null,"印",null,null,null,null,null,"（地区体育･ｽﾎﾟｰﾂ協会等代表者名）",null,null,null,null,null,null,null,null,null,null,null,null,null,null,null,null,null,null,null,null,null,null,null,null,null,null,null,null,null,null,null,null,"印"]
[]
["公金取扱者",null,null,null,null,null,null,null,null,null,null,null,null,null,null,null,null,null,null,null,null,null,null,null,null,null,null,null,null,null,null,null,null,"印",null,null,null,null,null,"公金取扱者",null,null,null,null,null,null,null,null,null,null,null,null,null,null,null,null,null,null,null,null,null,null,null,null,null,null,null,null,null,null,null,null,"印"]
[]
[null,null,null,null,null,null,null,null,null,null,null,null,null,null,null,null,null,null,null,null,null,null,null,null,null,null,null,null,null,null,null,null,null,null,null,null,null,null,null,"担当者",null,null,null,null,null,null,null,null,null,null,null,null,null,null,null,null,null,null,null,null,null,null,null,null,null,null,null,null,null,null,null,null,"印"]